Cogmind - Beta 13 @@@ ROGUE MODE // 2024.04.13 @ 01:54:30 Player: anthonyiye Result: Destroyed by G-47 Trooper with Particle Gun Performance ------------- Evolutions (2) 1000 Regions Visited (5) 1000 Robots Destroyed (41) 205 Value Destroyed (1103) 1103 Prototype IDs (3) 60 Alien Tech Used (0) 0 Bonus (300) 300 TOTAL SCORE: 3668 Bonus ------- Aligned with FarCom 300 Cogmind --------- Core Integrity 0/550 Matter 287/300 Energy 100/100 System Corruption 0% Temperature Cool (36) Movement Core (500) Ox9 Location -8/Materials Parts ------- > --- POWER (2) -------- (None) > --- PROPULSION (3) --- (None) > --- UTILITY (4) ------ Large Storage Unit Improved Signal Interpreter Hardened Medium Armor Plating > --- WEAPON (2) ------- Mace > --- INVENTORY (15) --- Ion Engine Light Nuclear Core Light Treads Flight Unit Flight Unit Flight Unit VTOL Module Structural Scanner Improved Signal Interpreter ECM Suite Hacking Suite Hacking Suite Improved Datajack Peak State ------------ > --- POWER ------------ Light Ion Engine Light Nuclear Core > --- PROPULSION ------- Light Treads Light Treads Improved Treads > --- UTILITY ---------- Improved Heat Sink Large Storage Unit Improved Signal Interpreter Core Shielding > --- WEAPON ----------- Ion Cannon Assault Rifle > --- INVENTORY -------- Ion Engine Compact Wheel Flight Unit Flight Unit Flight Unit VTOL Module Structural Scanner Improved Signal Interpreter ECM Suite Hacking Suite Hacking Suite Mace [Rating: 22] Favorites ----------- Power Light Ion Engine Engine Light Ion Engine Power Core Light Nuclear Core Propulsion Light Treads Treads Light Treads Wheel Wheel Utility Medium Storage Unit Device Sensor Array Storage Medium Storage Unit Processor Improved Signal Interpreter Protection Core Shielding Weapon Medium Laser Energy Gun Medium Laser Energy Cannon Ion Cannon Ballistic Gun Assault Rifle Impact Weapon Mace Build | -11 -10 -10 -10 -9 -8 ------- Run | Yrd Mat Min Exi Min Mat Slots Evolved 4 | . . . . . 4 Power 1 | . . . . . 1 Propulsion 1 | . . . . . 1 Utility 2 | . . . . . 2 Weapon . | . . . . . . Parts Attached 29 | 6 7 . 2 2 12 Power 3 | 1 1 . . . 1 Engine 2 | 1 1 . . . . Core 1 | . . . . . 1 Reactor . | . . . . . . Propulsion 8 | 2 2 . . . 4 Treads 5 | 2 2 . . . 1 Leg . | . . . . . . Wheel 3 | . . . . . 3 Hover . | . . . . . . Flight . | . . . . . . Utility 11 | 1 3 . 2 1 4 Device 4 | . 2 . 1 . 1 Storage 4 | 1 1 . 1 . 1 Processor 1 | . . . . . 1 Hackware . | . . . . . . Protection 2 | . . . . 1 1 Artifact . | . . . . . . Weapon 7 | 2 1 . . 1 3 Energy Gun 3 | 2 1 . . . . Energy Cannon 1 | . . . . . 1 Ballistic Gun 2 | . . . . 1 1 Ballistic Cannon . | . . . . . . Launcher . | . . . . . . Special Weapon . | . . . . . . Impact Weapon 1 | . . . . . 1 Slashing Weapon . | . . . . . . Piercing Weapon . | . . . . . . Special Melee Weapon . | . . . . . . Unidentified Prototypes 3 | . . . 2 . 1 Parts Lost 15 | . 2 . . . 13 Power 3 | . 1 . . . 2 Propulsion 6 | . . . . . 6 Utility 2 | . . . . . 2 Weapon 4 | . 1 . . . 3 Highest Loss Streak 10 | . 1 . . . 10 To Critical Strikes 1 | . . . . . 1 Average Slot Usage (%) 84 | . 97 100 92 99 61 Engine 10 | . 14 14 14 14 4 Core 1 | . . . . . 2 Treads 21 | . 28 28 28 28 10 Wheel 2 | . . . . . 5 Device 6 | . 11 14 7 . 3 Storage 12 | . 14 14 14 14 9 Processor 2 | . . . . . 7 Protection 4 | . . . . 13 4 Energy Gun 15 | . 28 28 28 14 . Energy Cannon 1 | . . . . . 3 Ballistic Gun 4 | . . . . 13 4 Impact Weapon 1 | . . . . . 4 Naked Turns . | . . . . . . Heaviest Build 38 | 12 18 18 18 18 38 Greatest Support 63 | 40 40 40 40 40 63 Greatest Overweight (x) 7 | 1 . . . . 7 Average Overweight (x) . | . . . . . . Largest Inventory Capacity 15 | 8 10 10 10 10 15 Average Capacity 10 | 7 8 10 10 10 13 Most Carried 14 | 4 9 9 10 10 14 Average Carried 9 | 2 6 9 9 9 11 Final Capacity 15 | 8 10 10 10 10 15 Final Carried 13 | 4 9 9 10 10 13 Class Distribution -------------------- 88% | Mutant 11% | Scavenger-Mutant Dominant Class ---------------- Mutant | -10/Materials Mutant | -10/Mines Mutant | -10/Exiles Mutant | -9/Mines Mutant | -8/Materials Resources | -11 -10 -10 -10 -9 -8 ----------- Run | Yrd Mat Min Exi Min Mat Matter Collected 604 | 193 142 . . 82 187 Remotely . | . . . . . . Salvage Created 1500 | . 454 151 . 92 803 Parts 76 | . 37 7 . 1 31 Haulers Intercepted 1 | . 1 . . . . Recyclers Shooed . | . . . . . . Parts Field Recycled . | . . . . . . Retrieved Matter . | . . . . . . Parts Self-Destructed . | . . . . . . Prevented . | . . . . . . Kills | -11 -10 -10 -10 -9 -8 ------- Run | Yrd Mat Min Exi Min Mat Combat Hostiles Destroyed 26 | . 10 2 . 2 12 Melee 2 | . . . . . 2 Guns 14 | . 10 1 . 1 2 Cannons 5 | . . . . . 5 Classes Destroyed 11 | . 7 1 . . 3 Worker 2 | . 1 . . . 1 Builder 2 | . 2 . . . . Hauler 1 | . 1 . . . . Recycler 3 | . . 1 . . 2 Operator 2 | . 1 . . . 1 Watcher 5 | . 3 . . . 2 Swarmer 6 | . 6 . . . . Grunt 16 | . 4 2 . 2 8 Brawler 1 | . . . . . 1 Sentry 2 | . . . . . 2 Hunter 1 | . . . . . 1 Best Kill Streak 5 | . 5 3 . 2 3 Combat Bots Only 5 | . 5 2 . 2 2 Max Kills in Single Turn 1 | . 1 1 . 1 1 Gunslinging . | . . . . . . Exploded . | . . . . . . Melee 1 | . . . . . 1 Uniques/NPCs Destroyed . | . . . . . . Combat | -11 -10 -10 -10 -9 -8 -------- Run | Yrd Mat Min Exi Min Mat Hostile Shots Fired 238 | . 53 9 . 8 168 Missed 58 | . 10 3 . 2 43 Damage Taken 2489 | . 406 88 . 80 1915 Core 673 | . 94 . . 20 559 Absorbed by Shields . | . . . . . . Redirected to Shielding 26 | . . . . 5 21 Core Remaining (%) 77 | 100 . . . 54 . Volleys Fired 94 | . 38 6 . 7 43 Largest 2 | . 2 2 . 2 2 Hottest 100 | . 100 100 . 70 80 Shots Fired 181 | . 78 12 . 15 76 Gun 149 | . 78 12 . 15 44 Cannon 32 | . . . . . 32 Launcher . | . . . . . . Special . | . . . . . . Kinetic 50 | . . . . 7 43 Thermal 101 | . 48 12 . 8 33 Explosive . | . . . . . . Electromagnetic 30 | . 30 . . . . Robot Hit Streak 13 | . 6 8 . 9 13 Robot Miss Streak 5 | . 5 1 . 1 2 Penetration Max . | . . . . . . Secondary Targets . | . . . . . . Shots Hit Robots 134 | . 44 10 . 12 68 Core Hits 52 | . 22 3 . 3 24 Critical Kills . | . . . . . . Critical Parts Destroyed 4 | . . . . . 4 Critical Strikes 12 | . 5 . . 3 4 Burn 8 | . 5 . . 3 . Smash 4 | . . . . . 4 Melee Attacks 22 | . . . . . 22 Impact 22 | . . . . . 22 Slashing . | . . . . . . Piercing . | . . . . . . Sneak Attacks . | . . . . . . Combat Hostiles . | . . . . . . Follow-up Attacks . | . . . . . . Damage Inflicted 2376 | . 616 133 . 142 1485 Guns 1252 | . 608 125 . 142 377 Cannons 599 | . . . . . 599 Explosions . | . . . . . . Melee 506 | . . . . . 506 Ramming 19 | . 8 8 . . 3 Kinetic 420 | . . . . 43 377 Thermal 1171 | . 348 125 . 99 599 Explosive . | . . . . . . Electromagnetic 260 | . 260 . . . . Impact 506 | . . . . . 506 Slashing . | . . . . . . Piercing . | . . . . . . Highest Corruption 3 | . 3 3 3 3 . Average Corruption 2 | . 2 3 3 3 . Corruption Purged . | . . . . . . Corruption Blocked . | . . . . . . Effects 36 | . 11 5 5 15 . Message Errors 7 | . 2 1 . 4 . Matter Fused 6 | . 2 . . 4 . Heat Flow Errors 6 | . 2 . 2 2 . Energy Discharges 5 | . 1 . 2 2 . Data Loss (minor) 7 | . 2 2 1 2 . Data Loss (major) 2 | . . 2 . . . Misfires 3 | . 2 . . 1 . Overload Shots . | . . . . . . Overflow Damage 144 | . . . . . 144 Projectiles . | . . . . . . Explosions . | . . . . . . Melee 144 | . . . . . 144 Knockbacks . | . . . . . . Impact . | . . . . . . Kinetic . | . . . . . . Secondary . | . . . . . . Self-Inflicted Damage 1 | . . . . . 1 Shots . | . . . . . . Rammed 7 | . 5 . . 1 1 Targets Rammed 9 | . 6 1 . 1 1 Kicked . | . . . . . . Crushed 2 | . 1 1 . . . Highest Temperature 354 | . 354 256 267 247 17 Average Temperature 100 | . 102 125 114 112 7 Received Heat Transfer 1008 | . 132 66 . 45 765 Siege Activations . | . . . . . . Robots Corrupted . | . . . . . . Combat Hostiles . | . . . . . . Parts Fried 5 | . 2 . . . 3 Impact Corruptions 6 | . . . . . 6 Robots Melted 2 | . . 1 . 1 . Combat Hostiles 2 | . . 1 . 1 . Parts Melted 13 | . 5 2 . 4 2 Heat Transferred 3256 | . 1406 370 . 518 962 Parts Sabotaged . | . . . . . . Parts Stolen . | . . . . . . Parts Stripped . | . . . . . . Power Chain Reactions . | . . . . . . Alert | -11 -10 -10 -10 -9 -8 ------- Run | Yrd Mat Min Exi Min Mat Peak Influence 298 | . 298 151 . 50 154 Initial 66 | . . 66 . . 19 Average 58 | . 104 99 . 4 46 Maximum Alert Level 1 | . 1 . . . . Low Security (%) 96 | 100 88 100 . 100 100 Level 1 3 | . 11 . . . . Level 2 . | . . . . . . Level 3 . | . . . . . . Level 4 . | . . . . . . Level 5 . | . . . . . . High Security . | . . . . . . Max Security . | . . . . . . Squads Dispatched 5 | . 1 . . . 4 Investigation 1 | . . . . . 1 Extermination . | . . . . . . Reinforcement 3 | . 1 . . . 2 Assault . | . . . . . . Garrison 1 | . . . . . 1 Intercept . | . . . . . . Searches Triggered . | . . . . . . Construction Impeded 1 | . . . . . 1 Haulers Reinforced . | . . . . . . Active Scanning Responses . | . . . . . . Cargo Convoy Interrupts . | . . . . . . Stealth | -11 -10 -10 -10 -9 -8 --------- Run | Yrd Mat Min Exi Min Mat Distress Signals 1 | . . . . . 1 Communications Jammed . | . . . . . . Distress Signals . | . . . . . . Times Spotted 42 | . 18 4 . 2 18 Peak Tracking Total 5 | . 5 2 . 2 5 Tactical Retreats 1 | . . 1 . . . Traps | -11 -10 -10 -10 -9 -8 ------- Run | Yrd Mat Min Exi Min Mat Traps Triggered 3 | . 2 . . . 1 Indirectly . | . . . . . . Trap Hack Attempts . | . . . . . . Triggered . | . . . . . . Disarmed . | . . . . . . Reprogrammed . | . . . . . . Reused . | . . . . . . Traps Extracted . | . . . . . . Installed . | . . . . . . Triggered . | . . . . . . Machines | -11 -10 -10 -10 -9 -8 ---------- Run | Yrd Mat Min Exi Min Mat Machines Disabled 1 | . 1 . . . . Max in Single Turn 1 | . 1 . . . . Garrison Access 1 | . . . . . 1 Machines Repaired . | . . . . . . Machines Dismantled . | . . . . . . Machines Sabotaged . | . . . . . . Overloaded Fab Kills . | . . . . . . Hacking | -11 -10 -10 -10 -9 -8 --------- Run | Yrd Mat Min Exi Min Mat Machines Accessed 6 | . 2 . . . 4 Terminals 5 | . 2 . . . 3 Fabricators . | . . . . . . Repair Stations . | . . . . . . Recycling Units . | . . . . . . Scanalyzers . | . . . . . . Garrison Access 1 | . . . . . 1 Total Hacks 18 | . 6 . . . 12 Successful 5 | . 1 . . . 4 Failed 12 | . 4 . . . 8 Catastrophic 2 | . 1 . . . 1 Database Lockouts 1 | . 1 . . . . Manual 15 | . 7 . 1 . 7 Terminals 15 | . 6 . . . 9 Fabricators . | . . . . . . Repair Stations . | . . . . . . Recycling Units . | . . . . . . Scanalyzers . | . . . . . . Garrison Access 3 | . . . . . 3 Terminal Hacks 3 | . 1 . . . 2 Record 1 | . . . . . 1 Part Schematic 1 | . 1 . . . . Zone Layout 1 | . . . . . 1 Fabricator Hacks . | . . . . . . Repair Station Hacks . | . . . . . . Recycling Unit Hacks . | . . . . . . Scanalyzer . | . . . . . . Garrison Access Hacks 2 | . . . . . 2 Seal Access 1 | . . . . . 1 Coupler Status 1 | . . . . . 1 Unauthorized Hacks . | . . . . . . Terminals . | . . . . . . Fabricators . | . . . . . . Repair Stations . | . . . . . . Recycling Units . | . . . . . . Scanalyzers . | . . . . . . Garrison Access . | . . . . . . Data Cores Recovered 1 | . . . . . 1 Used 1 | . . . . . 1 Hacking Detections 5 | . 2 . . . 3 Full Trace Events . | . . . . . . Feedback Events . | . . . . . . Feedback Blocked . | . . . . . . Robot Schematics Acquired . | . . . . . . Robots Built . | . . . . . . Authchips . | . . . . . . Time . | . . . . . . Total Robot Build Rating . | . . . . . . Part Schematics Acquired 1 | . 1 . . . . Parts Built . | . . . . . . Authchips . | . . . . . . Time . | . . . . . . Total Part Build Rating . | . . . . . . Parts Repaired . | . . . . . . Time . | . . . . . . Parts Recycled . | . . . . . . Recycled Matter . | . . . . . . Retrieved Matter . | . . . . . . Retrieved Components . | . . . . . . Parts Scanalyzed . | . . . . . . Part Schematics Acquired . | . . . . . . Parts Damaged . | . . . . . . Bothacking | -11 -10 -10 -10 -9 -8 ------------ Run | Yrd Mat Min Exi Min Mat Used RIF Installer . | . . . . . . Robots Hacked . | . . . . . . Non-combat . | . . . . . . Combat . | . . . . . . Robot Hacks Applied . | . . . . . . Relay Couplers Released . | . . . . . . Fabnet Peak Effective % . | . . . . . . Robots Rewired . | . . . . . . Allies Hacked . | . . . . . . Hacks Repelled . | . . . . . . Allies | -11 -10 -10 -10 -9 -8 -------- Run | Yrd Mat Min Exi Min Mat Total Allies . | . . . . . . Largest Group . | . . . . . . Highest-Rated Group . | . . . . . . Highest-Rated Ally . | . . . . . . Total Orders . | . . . . . . Ally Attacks . | . . . . . . Total Damage . | . . . . . . Kills . | . . . . . . Allies Corrupted . | . . . . . . Allies Melted . | . . . . . . Intel | -11 -10 -10 -10 -9 -8 ------- Run | Yrd Mat Min Exi Min Mat Robot Analysis Total . | . . . . . . Derelict Logs Recovered 1 | . . . . 1 . Drone Launches . | . . . . . . Drone Recoveries . | . . . . . . Exploration | -11 -10 -10 -10 -9 -8 ------------- Run | Yrd Mat Min Exi Min Mat Turns Passed 4150 | 78 1111 342 375 766 1478 Spaces Moved 2134 | 47 585 199 232 443 628 Core 70 | 12 . . . . 58 Treads 1797 | 35 585 199 232 443 303 Legs . | . . . . . . Wheels 267 | . . . . . 267 Hover . | . . . . . . Flight . | . . . . . . Fastest Speed 50 | 50 160 160 160 160 90 Average Speed 157 | 141 160 160 160 160 154 Slowest Speed 400 | 160 160 160 160 160 400 Overloaded Moves . | . . . . . . Propulsion Burnouts . | . . . . . . Robots Hopped . | . . . . . . Cave-ins Triggered . | . . . . . . Exploration Rate (%) 47 | 4 83 50 42 72 32 Regions Visited 5 Branch Regions 3 Pre-discovered Areas 2 | . . . . 2 . Known Exits Taken . | . . . . . . Unknown Exits Taken 5 | 1 1 1 1 1 . Scrap Searched 4 | . . . . 4 . Spaces Dug . | . . . . . . Terrain Destroyed 3 | . . . . . 3 Melee . | . . . . . . Projectile 3 | . . . . . 3 AOE . | . . . . . . Terrain Rammed . | . . . . . . Walls Destroyed . | . . . . . . Machines Disabled . | . . . . . . Actions | -11 -10 -10 -10 -9 -8 --------- Run | Yrd Mat Min Exi Min Mat Total 2694 | 56 683 210 236 487 1022 Wait 375 | . 33 5 . 30 307 Move 2129 | 46 584 198 231 442 628 Hop . | . . . . . . Pick Up 21 | 4 9 . . 2 6 Fast Attach 20 | 6 1 . 2 2 9 Attach 4 | . 2 . . . 2 Detach 2 | . . . 2 . . Swap 5 | . 4 . . . 1 Drop 13 | . 6 . 1 3 3 Fire 94 | . 38 6 . 7 43 Melee 22 | . . . . . 22 Ram 1 | . . . . . 1 Kick . | . . . . . . Crush 8 | . 6 1 . 1 . Escape Stasis . | . . . . . . Rewire . | . . . . . . Trap . | . . . . . . Miscellaneous . | . . . . . . Route ------- -11/Scrapyard -10/Materials (discovered 4 exits: [*Mat x3] / [*Min]) -10/Mines (discovered 2 exits: [*Mat] / *Exi) -10/Exiles -9/Mines -8/Materials (discovered 2 exits: *Sto x2) History --------- Turn | Location | Event 8 | -11/Scrapyard | Discovered new exit (range 15) 79 | -11/Scrapyard | Entered Materials 122 | -10/Materials | Discovered new exit (range 5) 315 | -10/Materials | Build established: Mutant 421 | -10/Materials | Discovered new exit (range 15) 905 | -10/Materials | Discovered new exit (range 14) 1037 | -10/Materials | Discovered new exit (range 14) 1044 | -10/Materials | Central database locked down 1190 | -10/Materials | Entered Mines 1339 | -10/Mines | Discovered new exit (range 8) 1524 | -10/Mines | Deemed a non-threat by the Exiles lab entrance 1525 | -10/Mines | Discovered new exit (range 5) 1532 | -10/Mines | Entered Exiles 1571 | -10/Exiles | Met 8R-AWN 1598 | -10/Exiles | Met EX-HEX 1646 | -10/Exiles | Met EX-BIN 1675 | -10/Exiles | Aligned with FarCom system 1676 | -10/Exiles | Given EX-Vault access code 1713 | -10/Exiles | Opened EX-Vault 1730 | -10/Exiles | Found Prototype Storage 1730 | -10/Exiles | Identified Superbattery 1741 | -10/Exiles | Found Prototype Device 1741 | -10/Exiles | Identified Chronowheel 1741 | -10/Exiles | Activated Chronowheel 1783 | -10/Exiles | Warned to stay clear of 0b10 Research branches 1887 | -10/Exiles | Discovered new exit (range 14) 1907 | -10/Exiles | Entered Mines 2416 | -9/Mines | Learned location of Storage (-8) 2574 | -9/Mines | Learned location of Zion (-7) 2665 | -9/Mines | Discovered new exit (range 6) 2673 | -9/Mines | Entered Materials 2673 | -8/Materials | Evolved 4 slots: Power x1, Propulsion x1, Utility x2 2871 | -8/Materials | Garrison activated, responded to threat 2886 | -8/Materials | Discovered new exit (range 14) 2989 | -8/Materials | Identified exit to Storage 3183 | -8/Materials | Build established: Scavenger-Mutant 3443 | -8/Materials | Core integrity fell below 50% 3444 | -8/Materials | Lost 10 parts (2p4n2u2w) 3657 | -8/Materials | Build established: Mutant 3951 | -8/Materials | Discovered exit to Storage (range 16) 4125 | -8/Materials | Core integrity fell below 20% 4151 | -8/Materials | Destroyed by G-47 Trooper with Particle Gun Last Messages --------------- G-47 Trooper system corrupted by crushing effect. G-47 Trooper system terminally corrupted. Imp. Heat Sink fried. Acquired 28 matter. Acquired 4 matter. K-01 Serf cleans the Electrolysis Chamber. K-01 Serf collects debris. Com. Wheel destroyed. K-01 Serf collects debris. Destroyed Lgt. Nuclear Core. G-47 Trooper system corrupted by crushing effect. G-47 Trooper destroyed. Critical hit (Burn: +37). K-01 Serf collects debris. Wheel destroyed. K-01 Serf cleans the Electrolysis Chamber. Critical hit (Burn: +37). Enh. Autogun destroyed. Map ----- +----------------------------------------------------+ | ??????????????#! """" # #?# #???????? | | ??????????????# """" # #######+####????? | | ??????????????# """" # #????? | | ??????????????# +% #????? | | ??????????????# """" # #????? | | ??????????????# """" # ####+#######?? | | ??????????????# """" # % ## ! #?? | | ??????????????# # ## #?? | | ??????????############## ## = """ #?? | | ???????? ## """ #?? | | ???????? ## " " """ #?? | | ???????? ## "G" #?? | | ?????????################# ## " #?? | | ?????????????????????????# ## #?? | | ?????????????????????????# ############?? | | ?????????????????????????# + #??? | | ??????????????????######?# # #??? | | ??????????????????# ### # #??? | | ??????????????????+ #? #??? | | ??????????????????# ! #?###??####??? | | ??????????????????# ##### #????????????? | | ?????????????###/###+####### #????????????? | | ?????????????# ] ## #????????????? | | ????????????## ] """ ""g# ????????????? | | ????????????# """ T"%# #???????????? | | ????????????## """k""@# > ???????????? | | ?????????????# ! Y #! ##??????????? | | ?????????????############### ##???????????? | | ???????????????????????????# #????????????? | | ???????????????????????????+ #????????????? | | ???????????????????????????# #????????????? | | ???????????????????????????? ?????????????? | | ???????????????????????????? ?????????????? | | ???????????????????????????? ??????????Y??? | | ???????????????????????????????????????????? | | ???????????????????????????????????????????? | | ???????????????????????????????????????????? | | ???????????????????????????????????????????? | | ???????????????????????????????????????????? | | ???????????????????????????????????????????? | | ???????????????????????????????????????????? | | ???????????????????????????????????????????? | | ???????????????????????????????????????????? | | ???????????????????????????????????????????? | | ???????????????????????????????????????????? | | ???????????????????????????????????????????? | | ???????????????????????????????????????????? | | ???????????????????????????????????????????? | | ???????????????????????????????????????????? | | ???????????????????????????????????????????? | +----------------------------------------------------+ Best States ------------- Heat Dissipation 45 Energy Generation 19 Energy Capacity 185 Matter Stores 300 Matter Capacity 300 Sight Range 16 Robot Scan Range 14 Terrain Scan Density 10 Armor Coverage 225 Core Shielding 20 Evasion (%) 42 Recoil Reduction 3 Item Schematics ----------------- Structural Scanner | -10/Materials | Hacked Robot Schematics ------------------ None Fabricated ------------ Nothing Alien Tech Used ----------------- None Achievements -------------- None Challenges ------------ None Game ------ Seed PiercingVisualInterpreter Manual? 0 Play Time 00:31:23 Cumulative 15.6 hours Start 2024.04.13 @ 01:22:50 End 2024.04.13 @ 01:54:30 Sessions 1 Manual Loads 0 Difficulty Rogue Special Mode None Game No. 14 Rogue 14 Adventurer 0 Explorer 0 Win Type - Total 0 Types 0/0/0/0/0/0/0/0/0 Lore% 14 Gallery% 18 Achievement% 20 Wizard Run 0 Options --------- Layout 1 ASCII 0 Keyboard 1 Movement Arrows Keybinds 0 Fullscreen 1 Font 32/SmallcapsGlow Map View 50x35 Zoom Use 0% Tactical HUD 0 Map Filters NONE Filters NONE Steam 0 RUN: f26014ae-a9d6-48af-9e0e-611e1446de6e